Cogmind - Beta 11.1 @@@ ROGUE MODE // 2022.07.29 @ 17:07:38 Player: gorb Result: Destroyed by Y-64 Sentinel with Wave Gun Performance ------------- Evolutions (1) 500 Regions Visited (6) 1200 Robots Destroyed (21) 105 Value Destroyed (451) 451 Prototype IDs (1) 20 Alien Tech Used (0) 0 Bonus (-57) -57 TOTAL SCORE: 2219 Bonus ------- Friendly Fire -57 Cogmind --------- Core Integrity 0/400 Matter 288/300 Energy 49/100 System Corruption 5% Temperature Cool (9) Movement Core (350) Ox6 Location -6/Proximity Caves Parts ------- > --- POWER (1) -------- (None) > --- PROPULSION (3) --- (None) > --- UTILITY (3) ------ Large Storage Unit > --- WEAPON (2) ------- (None) > --- INVENTORY (15) --- Aluminum Leg Heat Sink Improved Terrain Scanner Makeshift Salvage Targeting Computer Makeshift ECM Suite Makeshift Hacking Suite Beam Rifle Makeshift Laser Improved Grenade Launcher Makeshift Spear Peak State ------------ > --- POWER ------------ Ion Engine > --- PROPULSION ------- Wheel Compact Wheel > --- UTILITY ---------- Large Storage Unit Light Armor Plating Hacking Drone Bay > --- WEAPON ----------- Makeshift Laser Makeshift Spear > --- INVENTORY -------- Light Ion Engine Aluminum Leg Aluminum Leg Heat Sink Improved Terrain Scanner Makeshift Salvage Targeting Computer Makeshift ECM Suite Beam Rifle Assault Rifle Heavy Assault Rifle Improved Grenade Launcher Missile Launcher Mining Laser Makeshift Spear [Rating: 25] Favorites ----------- Power Ion Engine Engine Ion Engine Propulsion Wheel Leg Aluminum Leg Wheel Wheel Utility Large Storage Unit Device Heat Sink Storage Large Storage Unit Processor Makeshift Terrain Scan Processor Protection Light Armor Plating Weapon Assault Rifle Energy Gun Makeshift Laser Ballistic Gun Assault Rifle Launcher Grenade Launcher Piercing Weapon Makeshift Spear Build | -11 -10 -10 -9 -9 -7 -6 ------- Run | Scr Mat Min Mat Min Zio Pro Slots Evolved 2 | . . . 2 . . . Power . | . . . . . . . Propulsion 1 | . . . 1 . . . Utility 1 | . . . 1 . . . Weapon . | . . . . . . . Parts Attached 26 | 7 1 3 5 . 5 5 Power 2 | 1 . . . . . 1 Engine 2 | 1 . . . . . 1 Core . | . . . . . . . Reactor . | . . . . . . . Propulsion 7 | 2 . 2 2 . . 1 Treads . | . . . . . . . Leg 1 | . . . . . . 1 Wheel 6 | 2 . 2 2 . . . Hover . | . . . . . . . Flight . | . . . . . . . Utility 8 | 2 1 . 2 . 3 . Device 4 | 1 . . 2 . 1 . Storage 2 | 1 1 . . . . . Processor 1 | . . . . . 1 . Hackware . | . . . . . . . Protection 1 | . . . . . 1 . Artifact . | . . . . . . . Weapon 9 | 2 . 1 1 . 2 3 Energy Gun 3 | . . . 1 . 1 1 Energy Cannon . | . . . . . . . Ballistic Gun 2 | 2 . . . . . . Ballistic Cannon . | . . . . . . . Launcher 3 | . . 1 . . . 2 Special Weapon . | . . . . . . . Impact Weapon . | . . . . . . . Slashing Weapon . | . . . . . . . Piercing Weapon 1 | . . . . . 1 . Special Melee Weapon . | . . . . . . . Unidentified Prototypes 1 | . . . . . 1 . Parts Lost 17 | . . 4 2 . 1 10 Power 2 | . . . . . . 2 Propulsion 7 | . . 3 1 . . 3 Utility 3 | . . 1 . . 1 1 Weapon 5 | . . . 1 . . 4 Highest Loss Streak 10 | . . 2 1 . 1 10 To Critical Strikes . | . . . . . . . Average Slot Usage (%) 88 | . 100 94 93 . 87 55 Engine 11 | . 14 14 11 . 11 4 Wheel 22 | . 28 25 29 . 22 9 Device 13 | . 14 12 22 . 13 4 Storage 11 | . 14 14 11 . 11 11 Processor 2 | . . . . . 3 . Protection 3 | . . . . . 4 6 Energy Gun 8 | . . . 3 . 11 6 Ballistic Gun 6 | . 28 14 11 . 2 . Launcher 1 | . . 14 5 . . 2 Piercing Weapon 6 | . . . . . 8 8 Naked Turns . | . . . . . . . Heaviest Build 33 | 15 30 31 32 31 33 33 Greatest Support 36 | 20 20 20 36 26 26 26 Greatest Overweight (x) 9 | . 1 2 1 1 1 9 Average Overweight (x) . | . . 1 . 1 1 1 Largest Inventory Capacity 15 | 8 15 15 15 15 15 15 Average Capacity 14 | 7 14 15 15 15 15 15 Most Carried 15 | 6 10 10 9 8 15 14 Average Carried 11 | 4 7 8 5 8 13 13 Final Capacity 15 | 8 15 15 15 15 15 15 Final Carried 14 | 5 10 10 8 8 14 10 Class Distribution -------------------- 75% | Mutant 24% | Scavenger-Mutant Dominant Class ---------------- Mutant | -10/Materials Mutant | -10/Mines Scavenger-Mutant | -9/Materials Scavenger-Mutant | -9/Mines Mutant | -7/Zion Mutant | -6/Proximity Caves Resources | -11 -10 -10 -9 -9 -7 -6 ----------- Run | Scr Mat Min Mat Min Zio Pro Matter Collected 692 | 318 70 102 77 . 99 26 Remotely . | . . . . . . . Salvage Created 567 | 105 115 138 77 . . 132 Parts 36 | 8 12 6 7 . . 3 Haulers Intercepted . | . . . . . . . Recyclers Shooed 1 | 1 . . . . . . Parts Field Recycled . | . . . . . . . Retrieved Matter . | . . . . . . . Parts Self-Destructed 5 | . . . . . 1 4 Prevented . | . . . . . . . Kills | -11 -10 -10 -9 -9 -7 -6 ------- Run | Scr Mat Min Mat Min Zio Pro Combat Hostiles Destroyed 14 | . 3 6 2 . . 3 Guns 10 | . 3 2 2 . . 3 AOE 4 | . . 4 . . . . Classes Destroyed 7 | 2 2 2 1 . . . Worker 2 | . . 2 . . . . Builder 1 | . 1 . . . . . Tunneler 2 | 2 . . . . . . Recycler 2 | 1 1 . . . . . Swarmer 6 | . 3 2 . . . 1 Grunt 7 | . . 4 1 . . 2 Sentry 1 | . . . 1 . . . Best Kill Streak 7 | 2 5 7 1 . . 2 Combat Bots Only 3 | . 3 3 1 . . 2 Max Kills in Single Turn 2 | 1 2 2 1 . . 1 Gunslinging 1 | . 1 . . . . . Exploded 1 | . . 1 . . . . Melee . | . . . . . . . Uniques/NPCs Destroyed . | . . . . . . . Combat | -11 -10 -10 -9 -9 -7 -6 -------- Run | Scr Mat Min Mat Min Zio Pro Damage Taken 1670 | . 158 270 109 . 32 1101 Core 522 | . 36 77 14 . . 395 Absorbed by Shields . | . . . . . . . Core Remaining (%) 77 | 100 . 54 . . . . Volleys Fired 60 | 8 10 13 13 . . 16 Largest 2 | 2 2 2 2 . . 1 Hottest 80 | 40 40 50 70 . . 80 Shots Fired 89 | 16 20 20 17 . . 16 Gun 78 | 16 20 12 16 . . 14 Cannon . | . . . . . . . Launcher 11 | . . 8 1 . . 2 Special . | . . . . . . . Kinetic 61 | 16 20 12 13 . . . Thermal 17 | . . . 3 . . 14 Explosive 10 | . . 8 1 . . 1 Electromagnetic 1 | . . . . . . 1 Robot Hit Streak 15 | 10 4 4 3 . . 15 Robot Miss Streak 3 | 1 3 3 3 . . 3 Penetration Max . | . . . . . . . Secondary Targets 1 | . 1 . . . . . Max Gunslinging Chain 1 | . 1 . . . . . Shots Hit Robots 54 | 12 10 11 8 . . 13 Core Hits 39 | 4 6 17 5 . . 7 Critical Kills . | . . . . . . . Critical Parts Destroyed 1 | . 1 . . . . . Critical Strikes 1 | . 1 . . . . . Destroy 1 | . 1 . . . . . Melee Attacks 12 | . . . . . 12 . Impact . | . . . . . . . Slashing . | . . . . . . . Piercing 12 | . . . . . 12 . Sneak Attacks . | . . . . . . . Combat Hostiles . | . . . . . . . Follow-up Attacks . | . . . . . . . Damage Inflicted 1411 | 146 180 672 113 . . 300 Guns 697 | 146 180 79 101 . . 191 Cannons . | . . . . . . . Explosions 713 | . . 593 11 . . 109 Melee . | . . . . . . . Ramming 1 | . . . 1 . . . Kinetic 506 | 146 180 79 101 . . . Thermal 191 | . . . . . . 191 Explosive 661 | . . 593 11 . . 57 Electromagnetic 52 | . . . . . . 52 Impact . | . . . . . . . Slashing . | . . . . . . . Piercing . | . . . . . . . Highest Corruption 5 | . . 1 . . 5 5 Average Corruption 4 | . . 1 . . 5 5 Corruption Purged . | . . . . . . . Corruption Blocked . | . . . . . . . Effects 20 | . . 1 . . 16 3 Message Errors 7 | . . . . . 5 2 Matter Fused 3 | . . . . . 3 . Heat Flow Errors 2 | . . . . . 2 . Energy Discharges 2 | . . . . . 2 . Parts Rejected 1 | . . . . . . 1 Data Loss (minor) 2 | . . . . . 2 . Data Loss (major) 1 | . . . . . 1 . Alerts 1 | . . . . . 1 . Weapon Failures 1 | . . 1 . . . . Overload Shots . | . . . . . . . Overflow Damage 19 | . . 15 4 . . . Projectiles . | . . . . . . . Explosions 19 | . . 15 4 . . . Melee . | . . . . . . . Knockbacks . | . . . . . . . Impact . | . . . . . . . Kinetic . | . . . . . . . Secondary . | . . . . . . . Self-Inflicted Damage 131 | . . 83 11 . . 37 Shots 6 | . . 3 1 . . 2 Rammed 1 | . . . 1 . . . Targets Rammed 1 | . . . 1 . . . Kicked . | . . . . . . . Crushed . | . . . . . . . Highest Temperature 168 | . . 6 . . 168 104 Average Temperature 47 | . . 3 . . 80 45 Received Heat Transfer 489 | . 18 51 33 . . 387 Siege Activations . | . . . . . . . Robots Corrupted . | . . . . . . . Combat Hostiles . | . . . . . . . Parts Fried . | . . . . . . . Impact Corruptions . | . . . . . . . Robots Melted . | . . . . . . . Combat Hostiles . | . . . . . . . Parts Melted . | . . . . . . . Heat Transferred 420 | . . . . . . 420 Parts Sabotaged . | . . . . . . . Parts Stolen . | . . . . . . . Parts Stripped . | . . . . . . . Power Chain Reactions . | . . . . . . . Missiles Intercepted . | . . . . . . . Alert | -11 -10 -10 -9 -9 -7 -6 ------- Run | Scr Mat Min Mat Min Zio Pro Peak Influence 287 | 15 118 287 229 88 . . Initial 111 | . 9 45 111 88 . . Average 94 | 5 64 139 167 88 . . Maximum Alert Level 1 | . . 1 1 . . . Low Security (%) 86 | 100 100 68 75 100 . . Level 1 13 | . . 31 24 . . . Level 2 . | . . . . . . . Level 3 . | . . . . . . . Level 4 . | . . . . . . . Level 5 . | . . . . . . . High Security . | . . . . . . . Max Security . | . . . . . . . Squads Dispatched 3 | . 2 . 1 . . . Investigation 2 | . 2 . . . . . Extermination . | . . . . . . . Reinforcement 1 | . . . 1 . . . Assault . | . . . . . . . Garrison . | . . . . . . . Intercept . | . . . . . . . Searches Triggered . | . . . . . . . Construction Impeded . | . . . . . . . Haulers Reinforced . | . . . . . . . Active Scanning Responses . | . . . . . . . Cargo Convoy Interrupts . | . . . . . . . Stealth | -11 -10 -10 -9 -9 -7 -6 --------- Run | Scr Mat Min Mat Min Zio Pro Distress Signals 1 | . . . 1 . . . Communications Jammed . | . . . . . . . Distress Signals . | . . . . . . . Times Spotted 27 | . 4 11 5 . . 7 Peak Tracking Total 7 | . 4 3 4 . . 7 Tactical Retreats 1 | . 1 . . . . . Traps | -11 -10 -10 -9 -9 -7 -6 ------- Run | Scr Mat Min Mat Min Zio Pro Traps Triggered 2 | . 2 . . . . . Indirectly . | . . . . . . . Trap Hack Attempts . | . . . . . . . Triggered . | . . . . . . . Disarmed . | . . . . . . . Reprogrammed . | . . . . . . . Reused . | . . . . . . . Traps Extracted . | . . . . . . . Installed . | . . . . . . . Triggered . | . . . . . . . Machines | -11 -10 -10 -9 -9 -7 -6 ---------- Run | Scr Mat Min Mat Min Zio Pro Machines Disabled 1 | . . . . . . 1 Max in Single Turn 1 | . . . . . . 1 Machines Sabotaged . | . . . . . . . Garrisons Compromised . | . . . . . . . Overloaded Fab Kills . | . . . . . . . Hacking | -11 -10 -10 -9 -9 -7 -6 --------- Run | Scr Mat Min Mat Min Zio Pro Machines Accessed 2 | . 2 . . . . . Terminals 2 | . 2 . . . . . Fabricators . | . . . . . . . Repair Stations . | . . . . . . . Recycling Units . | . . . . . . . Scanalyzers . | . . . . . . . Garrison Access . | . . . . . . . Total Hacks 2 | . 2 . . . . . Successful 1 | . 1 . . . . . Failed 1 | . 1 . . . . . Catastrophic 1 | . 1 . . . . . Database Lockouts . | . . . . . . . Manual 3 | . . . . . 3 . Terminals 2 | . 2 . . . . . Fabricators . | . . . . . . . Repair Stations . | . . . . . . . Recycling Units . | . . . . . . . Scanalyzers . | . . . . . . . Garrison Access . | . . . . . . . Terminal Hacks 1 | . 1 . . . . . Dispatch Records 1 | . 1 . . . . . Fabricator Hacks . | . . . . . . . Repair Station Hacks . | . . . . . . . Recycling Unit Hacks . | . . . . . . . Scanalyzer . | . . . . . . . Garrison Access Hacks . | . . . . . . . Unauthorized Hacks . | . . . . . . . Terminals . | . . . . . . . Fabricators . | . . . . . . . Repair Stations . | . . . . . . . Recycling Units . | . . . . . . . Scanalyzers . | . . . . . . . Garrison Access . | . . . . . . . Data Cores Recovered . | . . . . . . . Used . | . . . . . . . Hacking Detections 2 | . 2 . . . . . Full Trace Events . | . . . . . . . Feedback Events . | . . . . . . . Feedback Blocked . | . . . . . . . Robot Schematics Acquired 1 | . . . . . 1 . Robots Built . | . . . . . . . Authchips . | . . . . . . . Time . | . . . . . . . Total Robot Build Rating . | . . . . . . . Part Schematics Acquired 3 | . . . . . 3 . Parts Built . | . . . . . . . Authchips . | . . . . . . . Time . | . . . . . . . Total Part Build Rating . | . . . . . . . Parts Repaired . | . . . . . . . Time . | . . . . . . . Parts Recycled . | . . . . . . . Recycled Matter . | . . . . . . . Retrieved Matter . | . . . . . . . Retrieved Components . | . . . . . . . Parts Scanalyzed . | . . . . . . . Part Schematics Acquired . | . . . . . . . Parts Damaged . | . . . . . . . Bothacking | -11 -10 -10 -9 -9 -7 -6 ------------ Run | Scr Mat Min Mat Min Zio Pro Used RIF Installer . | . . . . . . . Robots Hacked . | . . . . . . . Non-combat . | . . . . . . . Combat . | . . . . . . . Robot Hacks Applied . | . . . . . . . Relay Couplers Released . | . . . . . . . Fabnet Peak Effective % . | . . . . . . . Robots Rewired . | . . . . . . . Allies Hacked . | . . . . . . . Hacks Repelled . | . . . . . . . Allies | -11 -10 -10 -9 -9 -7 -6 -------- Run | Scr Mat Min Mat Min Zio Pro Total Allies . | . . . . . . . Largest Group . | . . . . . . . Highest-Rated Group . | . . . . . . . Highest-Rated Ally . | . . . . . . . Total Orders . | . . . . . . . Ally Attacks . | . . . . . . . Total Damage . | . . . . . . . Kills . | . . . . . . . Allies Corrupted . | . . . . . . . Allies Melted 1 | . . 1 . . . . Intel | -11 -10 -10 -9 -9 -7 -6 ------- Run | Scr Mat Min Mat Min Zio Pro Robot Analysis Total . | . . . . . . . Derelict Logs Recovered 2 | . . . . . 2 . Drone Launches . | . . . . . . . Drone Recoveries . | . . . . . . . Exploration | -11 -10 -10 -9 -9 -7 -6 ------------- Run | Scr Mat Min Mat Min Zio Pro Turns Passed 1770 | 115 185 142 131 3 1117 77 Spaces Moved 1496 | 96 141 107 104 3 1021 24 Core 16 | 14 . . . . . 2 Treads . | . . . . . . . Legs 5 | . . . . . . 5 Wheels 1475 | 82 141 107 104 3 1021 17 Hover . | . . . . . . . Flight . | . . . . . . . Fastest Speed 50 | 50 80 95 86 105 105 105 Average Speed 101 | 75 93 96 89 105 105 158 Slowest Speed 500 | 80 95 110 105 105 105 500 Overloaded Moves . | . . . . . . . Propulsion Burnouts . | . . . . . . . Robots Hopped . | . . . . . . . Cave-ins Triggered 1 | . . . . . 1 . Exploration Rate (%) 22 | 5 19 40 15 3 73 5 Regions Visited 6 Branch Regions 4 Pre-discovered Areas . | . . . . . . . Known Exits Taken . | . . . . . . . Unknown Exits Taken 6 | 1 1 1 1 1 1 . Scrap Searched 1 | . . . . . 1 . Spaces Dug 10 | . . . . . 10 . Terrain Destroyed 78 | . . 47 10 . 10 11 Melee 10 | . . . . . 10 . Projectile . | . . . . . . . AOE 68 | . . 47 10 . . 11 Terrain Rammed . | . . . . . . . Walls Destroyed . | . . . . . . . Machines Disabled . | . . . . . . . Actions | -11 -10 -10 -9 -9 -7 -6 --------- Run | Scr Mat Min Mat Min Zio Pro Total 1645 | 121 173 124 125 2 1054 46 Wait 16 | . 15 . . . . 1 Move 1489 | 95 140 106 103 2 1019 24 Hop . | . . . . . . . Pick Up 34 | 11 6 2 3 . 12 . Fast Attach 1 | 1 . . . . . . Attach 18 | 6 . 2 5 . 1 4 Detach . | . . . . . . . Swap 7 | . 1 1 . . 4 1 Drop 6 | . 1 . . . 5 . Fire 60 | 8 10 13 13 . . 16 Melee 12 | . . . . . 12 . Ram 1 | . . . 1 . . . Kick . | . . . . . . . Crush . | . . . . . . . Escape Stasis 1 | . . . . . 1 . Rewire . | . . . . . . . Trap . | . . . . . . . Miscellaneous . | . . . . . . . Route ------- -11/Scrapyard -10/Materials -10/Mines -9/Materials -9/Mines -7/Zion -6/Proximity Caves History --------- Turn | Location | Event 8 | -11/Scrapyard | Discovered new exit (range 15) 116 | -11/Scrapyard | Entered Materials 280 | -10/Materials | Discovered new exit (range 16) 300 | -10/Materials | Build established: Mutant 301 | -10/Materials | Entered Mines 302 | -10/Mines | Assembled infested the area 307 | -10/Mines | Assisted by a Guerilla fighting off Assembled 406 | -10/Mines | Discovered new exit (range 15) 443 | -10/Mines | Entered Materials 443 | -9/Materials | Evolved 2 slots: Propulsion x1, Utility x1 539 | -9/Materials | Discovered new exit (range 16) 574 | -9/Materials | Entered Mines 575 | -9/Mines | A Derelict revealed a hidden shortcut to a safe place 577 | -9/Mines | Entered Zion 612 | -7/Zion | Learned Factory trap positions 743 | -7/Zion | Build established: Scavenger-Mutant 795 | -7/Zion | Visited the Megawrench Repair Shop 885 | -7/Zion | Received a hallucinogenic algorithm 1005 | -7/Zion | Learned Factory terminal intel 1088 | -7/Zion | Build established: Mutant 1185 | -7/Zion | Crushed by falling debris 1264 | -7/Zion | Given the Hacking Drone Bay 1266 | -7/Zion | Found Prototype Device 1267 | -7/Zion | Identified Hacking Drone Bay 1678 | -7/Zion | Discovered new exit (range 15) 1694 | -7/Zion | Entered Proximity Caves 1713 | -6/Proximity Caves | Attracted the attention of an 0b10 base 1751 | -6/Proximity Caves | Core integrity fell below 50% 1758 | -6/Proximity Caves | Core integrity fell below 20% 1771 | -6/Proximity Caves | Destroyed by Y-64 Sentinel with Wave Gun Last Messages --------------- 3S7VYJD5FKL>RUPZHTWNFSWQGOKLM2E|R :ZA Penetrated by Slug. Missile Launcher destroyed. Critical hit (Burn: +37). Slug penetrates G-50 Soldier. Acquired 8 matter. Machine disabled. Penetrated by Slug. Lgt. Ion Engine destroyed. Mak. Spear destroyed. Penetrated by Slug. Proton Missile Launcher destroyed. Critical hit (Burn: +37). Slug penetrates Wall. Penetrated by Slug. G-50 Soldier destroyed. Penetrated by Slug. Gatling Laser destroyed. Aluminum Leg destroyed. Slug penetrates Wall. Map ----- +----------------------------------------------------+ | ????????????????????????????????????????????? | | ????????????????????????????????????????????? | | ????????????????????????????????????????????? | | ????????????????????????????????????????????? | | ????????????????????????????????????????????? | | ????????????????????????????????????????????? | | ????????????????????????????????????????????? | | ????????????????????????????????????????????? | | ????????????????????????????????????????????? | | ???????????????#####+#??????????????????????? | | ???????????????" "??????????????????????? | | ??????????????#" "??????????????????????? | | ??????????????#" """#???????????????????? | | ??????????????# #???????????????????? | | ??????????????# # ??????????????????? | | ???????????#??#"" +???????????????????? | | ???????????# ?#"T #???????????????????? | | ??????????## #"" ?????????????????????? | | ??????????# # ""???????#####???????????? | | ??????????## #/###### ??????????? | | ??????????# Y%% !% ??????????? | | ??????????# ! #????????????????? | | ??????????# s ###### #???#????????????? | | ??????????##### g##?????? #????????????? | | ??????????????## #### #????????????? | | ???????????????# @ ????????? | | ???????????????# #### ????????? | | ???????????????# ##???????? #????????????? | | ???????????????## #???????????????????????? | | ????????????????## #???????????????????????? | | ?????????????????# #??#????????????????????? | | ?????????????????# ## #????????????????????? | | ????????????????## #????????????????????? | | ???????????????## #????????????????????? | | ??????????????## ###????????????????????? | | ??????????????# ##??????????????????????? | | ??????????????## #???????????????????????? | | ???????????????### ##???????????????????????? | | ?????????????????###????????????????????????? | | ????????????????????????????????????????????? | | ????????????????????????????????????????????? | | ????????????????????????????????????????????? | | ????????????????????????????????????????????? | | ????????????????????????????????????????????? | | ????????????????????????????????????????????? | | ????????????????????????????????????????????? | | ????????????????????????????????????????????? | | ????????????????????????????????????????????? | | ????????????????????????????????????????????? | | ????????????????????????????????????????????? | +----------------------------------------------------+ Best States ------------- Heat Dissipation 38 Energy Generation 10 Energy Capacity 250 Matter Stores 300 Matter Capacity 300 Sight Range 16 Terrain Scan Range 16 Terrain Scan Density 135 Armor Coverage 150 Evasion (%) 50 Item Schematics ----------------- Fission Core | -7/Zion | Archive Arm. Huge Wheel | -7/Zion | Archive Flexi-carbon Leg | -7/Zion | Archive Robot Schematics ------------------ O-24 Administrator | -7/Zion | Archive Fabricated ------------ Nothing Alien Tech Used ----------------- None Achievements -------------- I Survived The Infestation Part-time Excavator Robot Respite Challenges ------------ None Game ------ Seed HeavyZioniteBoregun Manual? 0 Play Time 00:32:30 Cumulative 7.7 hours Start 2022.07.29 @ 16:33:34 End 2022.07.29 @ 17:07:38 Sessions 1 Manual Loads 0 Difficulty Rogue Special Mode None Game No. 14 Rogue 14 Adventurer 0 Explorer 0 Win Type - Total 0 Types 0/0/0/0/0/0/0/0/0 Lore% 12 Gallery% 14 Achievement% 12 Wizard Run 0 Options --------- ASCII 0 Keyboard 0 Movement Mouse Keybinds 0 Fullscreen 1 Font 18/Smallcaps Map View 76x50 Tactical HUD 0 Map Filters NONE Filters NONE Steam 1 RUN: 53bb47c2-11ed-4053-94ce-6f8ee6931389